Cogmind - Beta 10.2 @@@ ROGUE MODE // 2021.06.16 @ 22:58:02 Player: puncake Result: Destroyed by G-47 Trooper with Particle Gun Performance ------------- Evolutions (2) 1000 Regions Visited (5) 1000 Robots Destroyed (19) 95 Value Destroyed (578) 578 Prototype IDs (1) 20 Alien Tech Used (0) 0 Bonus (33) 33 TOTAL SCORE: 2726 Bonus ------- Follower Combat Kills 33 Cogmind --------- Core Integrity 0/550 Matter 300/300 Energy 100/100 System Corruption 0% Temperature Cool (9) Movement Core (50) Location -8/Materials Parts ------- > --- POWER (1) -------- (None) > --- PROPULSION (4) --- (None) > --- UTILITY (3) ------ (None) > --- WEAPON (3) ------- (None) > --- INVENTORY (4) ---- Compact Wheel Small Storage Unit Peak State ------------ > --- POWER ------------ Light Ion Engine > --- PROPULSION ------- Aluminum Leg Aluminum Leg Aluminum Leg Improved Aluminum Leg > --- UTILITY ---------- Small Storage Unit Experimental Sensor Array Melee Analysis Suite > --- WEAPON ----------- Light EM Pulse Cannon Hammer Ripper > --- INVENTORY -------- Aluminum Leg Compact Wheel Shotgun Mining Laser [Rating: 23] Favorites ----------- Power Ion Engine Engine Ion Engine Power Core Light Nuclear Core Propulsion Aluminum Leg Treads Light Treads Leg Aluminum Leg Utility Small Storage Unit Device Terrain Scanner Storage Small Storage Unit Processor Melee Analysis Suite Weapon Ripper Energy Gun Small Laser Energy Cannon Light EM Pulse Cannon Ballistic Gun Shotgun Special Weapon Mining Laser Impact Weapon Hammer Slashing Weapon Ripper Build | -11 -10 -10 -9 -9 -8 ------- Run | Scr Mat Min Mat Min Mat Slots Evolved 4 | . . . 2 . 2 Power . | . . . . . . Propulsion 2 | . . . 2 . . Utility 1 | . . . . . 1 Weapon 1 | . . . . . 1 Parts Attached 27 | 6 1 1 8 4 7 Power 5 | 1 . . 2 1 1 Engine 4 | 1 . . 2 . 1 Core 1 | . . . . 1 . Reactor . | . . . . . . Propulsion 8 | 2 . . 2 3 1 Treads 2 | . . . 2 . . Leg 6 | 2 . . . 3 1 Wheel . | . . . . . . Hover . | . . . . . . Flight . | . . . . . . Utility 4 | 1 1 . 1 . 1 Device 2 | . 1 . . . 1 Storage 1 | 1 . . . . . Processor 1 | . . . 1 . . Hackware . | . . . . . . Protection . | . . . . . . Artifact . | . . . . . . Weapon 10 | 2 . 1 3 . 4 Energy Gun 2 | 2 . . . . . Energy Cannon 1 | . . . . . 1 Ballistic Gun 3 | . . . 1 . 2 Ballistic Cannon . | . . . . . . Launcher . | . . . . . . Special Weapon 1 | . . . . . 1 Impact Weapon 2 | . . . 2 . . Slashing Weapon 1 | . . 1 . . . Piercing Weapon . | . . . . . . Special Melee Weapon . | . . . . . . Unidentified Prototypes 1 | . . . . . 1 Parts Lost 16 | . . . 1 1 14 Power 2 | . . . . . 2 Propulsion 6 | . . . . 1 5 Utility 2 | . . . . . 2 Weapon 6 | . . . 1 . 5 Highest Loss Streak 7 | . . . 1 1 7 Average Slot Usage (%) 90 | . 97 100 98 100 51 Engine 8 | . 14 14 11 . 1 Core 2 | . . . . 10 1 Treads 9 | . . . 22 . . Leg 27 | . 28 28 22 44 24 Device 5 | . 11 14 6 . . Storage 10 | . 14 14 11 11 4 Processor 4 | . . . 4 11 4 Energy Gun 7 | . 28 20 6 . . Impact Weapon 4 | . . . 3 11 8 Slashing Weapon 8 | . . 7 11 11 3 Naked Turns 17 | . . . . . 17 Heaviest Build 17 | 12 13 14 16 16 17 Greatest Support 43 | 20 20 20 20 43 43 Greatest Overweight (x) 1 | 1 . . . . . Average Overweight (x) . | . . . . . . Largest Inventory Capacity 6 | 6 6 6 6 6 6 Average Capacity 5 | 5 6 6 6 6 4 Most Carried 6 | 6 6 6 6 6 6 Average Carried 5 | 3 6 5 5 5 3 Final Capacity 6 | 6 6 6 6 6 4 Final Carried 6 | 6 6 6 6 6 2 Class Distribution -------------------- 73% | Mutant 26% | Scavenger-Mutant Dominant Class ---------------- Mutant | -10/Materials Mutant | -10/Mines Mutant | -9/Materials Scavenger-Mutant | -9/Mines Scavenger-Mutant | -8/Materials Resources | -11 -10 -10 -9 -9 -8 ----------- Run | Scr Mat Min Mat Min Mat Matter Collected 450 | 260 10 10 60 55 55 Remotely . | . . . . . . Salvage Created 690 | . 54 54 403 83 96 Parts 46 | . 8 4 22 7 5 Haulers Intercepted . | . . . . . . Recyclers Shooed 1 | . . . 1 . . Parts Field Recycled . | . . . . . . Retrieved Matter . | . . . . . . Parts Self-Destructed . | . . . . . . Prevented . | . . . . . . Kills | -11 -10 -10 -9 -9 -8 ------- Run | Scr Mat Min Mat Min Mat Combat Hostiles Destroyed 17 | . 3 1 9 2 2 Melee 11 | . . . 9 2 . Guns 6 | . 3 1 . . 2 Classes Destroyed 7 | . 1 2 4 . . Worker 1 | . . 1 . . . Tunneler 1 | . . 1 . . . Swarmer 4 | . 3 1 . . . Grunt 10 | . . . 6 2 2 Brawler 1 | . . . 1 . . Duelist 1 | . . . 1 . . Sentry 1 | . . . 1 . . Best Kill Streak 3 | . 3 1 2 2 2 Combat Bots Only 3 | . 3 1 2 2 2 Max Kills in Single Turn 1 | . 1 1 1 1 1 Gunslinging . | . . . . . . Exploded . | . . . . . . Melee 1 | . . . 1 1 . Uniques/NPCs Destroyed . | . . . . . . Combat | -11 -10 -10 -9 -9 -8 -------- Run | Scr Mat Min Mat Min Mat Damage Taken 2081 | . 52 30 499 22 1478 Core 620 | . 10 . 50 . 560 Absorbed by Shields . | . . . . . . Core Remaining (%) 94 | 100 . 96 . 87 . Volleys Fired 28 | . 8 4 1 . 15 Largest 2 | . 2 2 1 . 2 Hottest 80 | . 80 80 40 . 79 Shots Fired 31 | . 9 5 1 . 16 Gun 25 | . 9 5 1 . 10 Cannon 6 | . . . . . 6 Launcher . | . . . . . . Special . | . . . . . . Kinetic 10 | . . . . . 10 Thermal 6 | . 1 4 1 . . Explosive . | . . . . . . Electromagnetic 15 | . 8 1 . . 6 Robot Hit Streak 6 | . 3 6 . . 4 Robot Miss Streak 2 | . 2 1 . . 2 Penetration Max . | . . . . . . Secondary Targets . | . . . . . . Shots Hit Robots 72 | . 5 5 34 2 26 Core Hits 27 | . 3 3 10 2 9 Critical Hits . | . . . . . . Critical Kills . | . . . . . . Critical Parts Destroyed . | . . . . . . Melee Attacks 63 | . . 1 44 2 16 Impact 19 | . . . 5 . 14 Slashing 44 | . . 1 39 2 2 Piercing . | . . . . . . Sneak Attacks 7 | . . 1 5 1 . Combat Hostiles 2 | . . . 1 1 . Follow-up Attacks 4 | . . . 3 . 1 Damage Inflicted 2326 | . 56 175 1486 135 474 Guns 216 | . 56 35 . . 125 Cannons 65 | . . . . . 65 Explosions 40 | . . 40 . . . Melee 1958 | . . 100 1486 135 237 Ramming 47 | . . . . . 47 Kinetic 125 | . . . . . 125 Thermal 60 | . . 60 . . . Explosive . | . . . . . . Electromagnetic 136 | . 56 15 . . 65 Impact 291 | . . . 95 . 196 Slashing 1667 | . . 100 1391 135 41 Piercing . | . . . . . . Highest Corruption . | . . . . . . Average Corruption . | . . . . . . Corruption Purged . | . . . . . . Overload Shots . | . . . . . . Overflow Damage 336 | . . . 336 . . Projectiles . | . . . . . . Explosions . | . . . . . . Melee 336 | . . . 336 . . Knockbacks 1 | . . . . . 1 Impact 1 | . . . . . 1 Kinetic . | . . . . . . Secondary . | . . . . . . Self-Inflicted Damage 50 | . . 31 . . 19 Shots 1 | . . 1 . . . Rammed 15 | . . . . . 15 Targets Rammed 15 | . . . . . 15 Kicked . | . . . . . . Crushed . | . . . . . . Highest Temperature 64 | . 18 30 . . 64 Average Temperature 20 | . 16 21 . . 22 Received Heat Transfer 876 | . . . 105 12 759 Siege Activations . | . . . . . . Robots Corrupted . | . . . . . . Combat Hostiles . | . . . . . . Parts Fried . | . . . . . . Impact Corruptions . | . . . . . . Robots Melted . | . . . . . . Combat Hostiles . | . . . . . . Parts Melted 1 | . . 1 . . . Heat Transferred 100 | . . 100 . . . Parts Sabotaged . | . . . . . . Parts Stolen . | . . . . . . Parts Stripped . | . . . . . . Power Chain Reactions 1 | . . 1 . . . Missiles Intercepted . | . . . . . . Alert | -11 -10 -10 -9 -9 -8 ------- Run | Scr Mat Min Mat Min Mat Peak Influence 241 | . 70 87 200 118 241 Initial 78 | . . 27 33 78 45 Average 85 | . 29 57 78 117 144 Maximum Alert Level 1 | . . . 1 . 1 Low Security (%) 93 | 100 100 100 94 100 79 Level 1 6 | . . . 5 . 20 Level 2 . | . . . . . . Level 3 . | . . . . . . Level 4 . | . . . . . . Level 5 . | . . . . . . High Security . | . . . . . . Max Security . | . . . . . . Squads Dispatched 2 | . . . 1 . 1 Investigation . | . . . . . . Extermination . | . . . . . . Reinforcement 2 | . . . 1 . 1 Assault . | . . . . . . Garrison . | . . . . . . Intercept . | . . . . . . Construction Impeded . | . . . . . . Haulers Reinforced . | . . . . . . Stealth | -11 -10 -10 -9 -9 -8 --------- Run | Scr Mat Min Mat Min Mat Distress Signals 5 | . 2 . 2 . 1 Communications Jammed . | . . . . . . Distress Signals . | . . . . . . Times Spotted 48 | . 3 2 22 1 20 Peak Tracking Total 9 | . 4 3 6 1 9 Tactical Retreats 9 | . . 1 3 . 5 Traps | -11 -10 -10 -9 -9 -8 ------- Run | Scr Mat Min Mat Min Mat Traps Triggered . | . . . . . . Indirectly . | . . . . . . Trap Hack Attempts . | . . . . . . Triggered . | . . . . . . Disarmed . | . . . . . . Reprogrammed . | . . . . . . Reused . | . . . . . . Traps Extracted . | . . . . . . Installed . | . . . . . . Triggered . | . . . . . . Machines | -11 -10 -10 -9 -9 -8 ---------- Run | Scr Mat Min Mat Min Mat Machines Disabled 1 | . . . . . 1 Max in Single Turn . | . . . . . . Machines Sabotaged . | . . . . . . Garrisons Compromised . | . . . . . . Overloaded Fab Kills . | . . . . . . Fab Network Shutdowns . | . . . . . . Hacking | -11 -10 -10 -9 -9 -8 --------- Run | Scr Mat Min Mat Min Mat Machines Accessed 2 | . 1 . 1 . . Terminals 2 | . 1 . 1 . . Fabricators . | . . . . . . Repair Stations . | . . . . . . Recycling Units . | . . . . . . Scanalyzers . | . . . . . . Garrison Access . | . . . . . . Total Hacks 2 | . 1 . 1 . . Successful 1 | . . . 1 . . Failed 1 | . 1 . . . . Catastrophic . | . . . . . . Database Lockouts . | . . . . . . Manual 2 | . 1 . 1 . . Terminals 2 | . 1 . 1 . . Fabricators . | . . . . . . Repair Stations . | . . . . . . Recycling Units . | . . . . . . Scanalyzers . | . . . . . . Garrison Access . | . . . . . . Terminal Hacks . | . . . . . . Fabricator Hacks . | . . . . . . Repair Station Hacks . | . . . . . . Recycling Unit Hacks . | . . . . . . Scanalyzer . | . . . . . . Garrison Access Hacks . | . . . . . . Unauthorized Hacks 1 | . . . 1 . . Terminals 1 | . . . 1 . . Operators 1 | . . . 1 . . Fabricators . | . . . . . . Repair Stations . | . . . . . . Recycling Units . | . . . . . . Scanalyzers . | . . . . . . Garrison Access . | . . . . . . Data Cores Recovered . | . . . . . . Used . | . . . . . . Hacking Detections 1 | . 1 . . . . Full Trace Events . | . . . . . . Feedback Events . | . . . . . . Feedback Blocked . | . . . . . . Robot Schematics Acquired . | . . . . . . Robots Built . | . . . . . . Matter . | . . . . . . Time . | . . . . . . Total Robot Build Rating . | . . . . . . Part Schematics Acquired . | . . . . . . Parts Built . | . . . . . . Matter . | . . . . . . Time . | . . . . . . Total Part Build Rating . | . . . . . . Parts Repaired . | . . . . . . Time . | . . . . . . Parts Recycled . | . . . . . . Recycled Matter . | . . . . . . Retrieved Matter . | . . . . . . Retrieved Components . | . . . . . . Parts Scanalyzed . | . . . . . . Part Schematics Acquired . | . . . . . . Parts Damaged . | . . . . . . Bothacking | -11 -10 -10 -9 -9 -8 ------------ Run | Scr Mat Min Mat Min Mat Used RIF Installer . | . . . . . . Robots Hacked . | . . . . . . Non-combat . | . . . . . . Combat . | . . . . . . Robot Hacks Applied . | . . . . . . Relay Couplers Released . | . . . . . . Robots Rewired . | . . . . . . Allies Hacked . | . . . . . . Hacks Repelled . | . . . . . . Allies | -11 -10 -10 -9 -9 -8 -------- Run | Scr Mat Min Mat Min Mat Total Allies 1 | . . . . 1 . Largest Group 1 | . . . . 1 1 Highest-Rated Group 31 | . . . . 31 31 Highest-Rated Ally 31 | . . . . 31 31 Total Orders . | . . . . . . Ally Attacks 9 | . . . . . 9 Total Damage 293 | . . . . . 293 Kills 1 | . . . . . 1 Allies Corrupted . | . . . . . . Allies Melted . | . . . . . . Intel | -11 -10 -10 -9 -9 -8 ------- Run | Scr Mat Min Mat Min Mat Robot Analysis Total . | . . . . . . Derelict Logs Recovered 3 | . . 1 . 2 . Drone Launches . | . . . . . . Drone Recoveries . | . . . . . . Exploration | -11 -10 -10 -9 -9 -8 ------------- Run | Scr Mat Min Mat Min Mat Turns Passed 1665 | 90 117 206 699 263 290 Spaces Moved 975 | 65 83 160 273 203 191 Core 134 | 14 . . . . 120 Treads . | . . . . . . Legs 841 | 51 83 160 273 203 71 Wheels . | . . . . . . Hover . | . . . . . . Flight . | . . . . . . Fastest Speed 50 | 50 120 120 120 120 50 Average Speed 110 | 112 120 120 120 120 76 Slowest Speed 120 | 120 120 120 120 120 120 Overloaded Moves . | . . . . . . Propulsion Burnouts . | . . . . . . Robots Hopped . | . . . . . . Cave-ins Triggered . | . . . . . . Exploration Rate (%) 27 | 4 26 54 21 45 16 Regions Visited 5 Branch Regions 2 Pre-discovered Areas 1 | . . 1 . . . Known Exits Taken . | . . . . . . Unknown Exits Taken 5 | 1 1 1 1 1 . Scrap Searched 3 | . . 1 . 2 . Spaces Dug . | . . . . . . Terrain Destroyed 7 | . . 7 . . . Melee . | . . . . . . Projectile . | . . . . . . AOE 7 | . . 7 . . . Terrain Rammed . | . . . . . . Walls Destroyed . | . . . . . . Machines Disabled . | . . . . . . Actions | -11 -10 -10 -9 -9 -8 --------- Run | Scr Mat Min Mat Min Mat Total 1441 | 81 91 167 583 220 299 Wait 314 | . . . 257 5 52 Move 970 | 64 82 159 272 202 191 Hop . | . . . . . . Pick Up 20 | 11 . 1 4 3 1 Fast Attach 5 | 1 1 . 1 1 1 Attach 16 | 5 . . 4 1 6 Detach 2 | . . . . . 2 Swap 6 | . . 1 3 2 . Drop 8 | . . 1 2 4 1 Fire 28 | . 8 4 1 . 15 Melee 57 | . . 1 39 2 15 Ram 15 | . . . . . 15 Kick . | . . . . . . Crush . | . . . . . . Escape Stasis . | . . . . . . Rewire . | . . . . . . Trap . | . . . . . . Miscellaneous . | . . . . . . Route ------- -11/Scrapyard -10/Materials -10/Mines -9/Materials -9/Mines -8/Materials (discovered 1 exit: Fac) History --------- Turn | Location | Event 11 | -11/Scrapyard | Discovered new exit (range 15) 91 | -11/Scrapyard | Entered Materials 189 | -10/Materials | Discovered new exit (range 14) 208 | -10/Materials | Entered Mines 209 | -10/Mines | Learned location of Storage (-8) 259 | -10/Mines | A weapon hastily lodged in a ceiling crevice suddenly fell to the ground 279 | -10/Mines | Learned Materials trap positions 303 | -10/Mines | Build established: Mutant 391 | -10/Mines | Found a hidden stash of uninstalled traps 408 | -10/Mines | Discovered new exit (range 4) 414 | -10/Mines | Entered Materials 414 | -9/Materials | Evolved 2 slots: Propulsion x2 415 | -9/Materials | Loaded intel: 7 trap records 1104 | -9/Materials | Discovered new exit (range 9) 1113 | -9/Materials | Entered Mines 1150 | -9/Mines | Joined a pair of Derelicts in attacking an 0b10 outpost 1243 | -9/Mines | Learned Materials trap positions 1318 | -9/Mines | Learned 4 Materials zone layouts 1319 | -9/Mines | Discovered new exit (range 12) 1321 | -9/Mines | Received a Mining Laser from a helpful Derelict 1340 | -9/Mines | Found a damaged Exp. Sensor Array with a note attached 1343 | -9/Mines | Found Prototype Device 1376 | -9/Mines | Entered Materials 1376 | -8/Materials | Accompanied by 1 ally 1376 | -8/Materials | Evolved 2 slots: Utility x1, Weapon x1 1377 | -8/Materials | Identified exit to Factory 1378 | -8/Materials | Loaded intel: 5 trap records 1421 | -8/Materials | Build established: Scavenger-Mutant 1485 | -8/Materials | Identified Exp. Sensor Array 1543 | -8/Materials | Lost 7 parts (1p1n2u3w) 1571 | -8/Materials | Core integrity fell below 50% 1596 | -8/Materials | Lost 4 parts (3n1w) 1659 | -8/Materials | Core integrity fell below 20% 1666 | -8/Materials | Destroyed by G-47 Trooper with Particle Gun Last Messages --------------- 01558_ K-01 Serf collects debris. 01560_ Imp. Aluminum Leg destroyed. 01562_ K-01 Serf collects debris. 01563_ Shotgun destroyed. 01565_ Aluminum Leg destroyed. 01569_ K-01 Serf collects debris. 01573_ Acquired 55 matter. 01581_ U-05 Engineer lays Concrete. 01582_ U-05 Engineer builds a Wall. 01591_ K-01 Serf collects debris. 01596_ U-05 Engineer lays Concrete. 01599_ G-47 Trooper IFF system glitched. 01631_ Aluminum Leg destroyed. 01645_ K-01 Serf collects debris. 01649_ Hammer destroyed. 01651_ K-01 Serf collects debris. 01651_ Slammed into G-47 Trooper. 01654_ K-01 Serf collects debris. 01654_ Slammed into K-01 Serf. 01657_ Slammed into G-47 Trooper. Map ----- +----------------------------------------------------+ | | | | | | | | | | | | | | | | | | | | | | | | | | | | | | | ????????????????????????????????????????????? | | ?????????????????????????????????######??#### | | ???????????????????????????????### #### | | ????????????????##########?????#### # | | ????????????????# #????### # | | ????????????????# #????# # % # | | ????????????????# #????# # #### | | ????????????????# #????# # ## | | ????????????????# #????# # + | | ????????????????# % #????# * ## % | | ????????????????# g@%% #????## ** ## | | ????????????????# %%%% #?????# ## | | ????????????????# %%%%%#?????## % # | | ??????????###########g###############/#### | | ??????????# %% | | ??????????# | | ??????????# "" | | ??????????########################## "Y """ | | ???????????????????????????????????# "" """ | | ???????????????????????????????????# """ | | ??????????????????????????########## | | ?????????????????????????##T# | | ?????????????????????????# [ | | ?????????????????????????# | | ?????????????????????????# #####/### ###### | | ?????????????????????????# # ## # | | ????????????????????????? # ## # | | ????????????????????????? # "" ## + | | ????????????????????????? # """## # | | ????????????????????????? + S"## #####+ | | ?????????????????????????### ## ##??# | | ???????????????????????????######## #### | | ?????????????????????????########## | | ????????????????????????? T | | ?????????????????????????### # | +----------------------------------------------------+ Best States ------------- Heat Dissipation 31 Energy Generation 14 Energy Capacity 265 Matter Stores 300 Matter Capacity 300 Sight Range 16 Robot Scan Range 30 Terrain Scan Range 14 Terrain Scan Density 10 Evasion (%) 50 Melee Accuracy 5 Item Schematics ----------------- None Robot Schematics ------------------ None Fabricated ------------ Nothing Alien Tech Used ----------------- None Achievements -------------- None Challenges ------------ None Game ------ Seed DimensionalThermalKit Manual? 0 Play Time 00:17:33 Cumulative 15.2 hours Start 2021.06.16 @ 22:41:38 End 2021.06.16 @ 22:58:02 Sessions 1 Manual Loads 0 Difficulty Rogue Special Mode None Game No. 16 Rogue 16 Adventurer 0 Explorer 0 Win Type - Total 0 Types 0/0/0/0/0/0/0/0/0 Lore% 16 Gallery% 35 Achievement% 22 Wizard Run 0 Options --------- ASCII 1 Keyboard 0 Movement Mouse Keybinds 0 Fullscreen 2 Font 18/X11 Map View 76x50 Tactical HUD 1 Map Filters NONE Filters NONE Steam 1 RUN: d18d404d-ab9a-401b-bfb2-3eb5df648fb2